bitfinex-derivatives/quotes_SOLF0:USTF0_20241206
["timestamp","ask_amount","ask_price","bid_price","bid_amount"]
[1733489985457,290.33165181,231.45,231.09,10.77581412]
[1733489985458,10.77581412,231.26,231.09,10.77581412]
[1733489985658,8.47990452,231.25,231.1,2.3633]
[1733489985952,10.77581412,231.23,231.1,2.3633]
[1733489986147,10.77581412,231.23,231.11,5.1056]
[1733489986353,10.77581412,231.26,231.11,5.1056]
[1733489987353,10.77581412,231.26,231.12,10.77581412]
[1733489987548,10.77581412,231.29,231.15,10.77581412]
[1733489987751,10.77581412,231.36,231.11,5.1056]
[1733489987752,10.77581412,231.32,231.18,10.77581412]
[1733489988051,10.77581412,231.35,231.18,10.77581412]
[1733489988351,10.77581412,231.35,231.12,23.71581412]
[1733489988352,10.77581412,231.35,231.22,10.77581412]
[1733489988560,10.77581412,231.35,231.23,5.5584]
[1733489988755,15.09908109,231.58,231.23,5.5584]
[1733489988955,10.77581412,231.37,231.23,5.5584]
[1733489989258,10.77581412,231.41,231.26,10.77581412]
[1733489990559,10.77581412,231.44,231.29,10.77581412]
[1733489990761,8.47719459,231.43,231.29,10.77581412]
[1733489991053,10.77581412,231.47,231.32,10.77581412]
[1733489991257,10.77581412,231.47,231.33,1.3756]
[1733489991759,10.77581412,231.47,231.34,1.5397]
[1733489992159,10.77581412,231.47,231.35,1.5352]
[1733489992848,10.77581412,231.44,231.35,1.5352]
[1733489993056,2.15908109,231.58,231.34,1.5397]
[1733489993254,10.77581412,231.46,231.34,1.5397]
[1733489993454,10.77581412,231.43,231.34,1.5397]
[1733489993658,10.77581412,231.4,231.34,1.5397]
[1733489994059,17.21543418,231.43,231.25,1.4384]
[1733489994255,17.21543418,231.43,231.26,1.4817]
[1733489994751,17.21543418,231.51,231.29,17.21543418]
[1733489994950,19.89437639,231.5,231.33,17.21543418]
[1733489995159,8.4512327,231.49,231.37,17.21543418]
[1733489995361,19.37451527,231.58,231.38,2.9201]
[1733489995554,19.27133385,231.57,231.38,2.9201]
[1733489995763,27.71416605,231.56,231.38,2.9201]
[1733489996060,27.71416605,231.55,231.38,2.9201]
[1733489996260,19.87881296,231.54,231.38,2.9201]
[1733489996459,8.4428322,231.53,231.38,2.9201]
[1733489996655,8.4428322,231.52,231.38,2.9201]
[1733489996855,19.37451527,231.58,231.38,2.9201]
[1733489997054,27.42318869,231.57,231.38,2.9201]
[1733489997361,17.21543418,231.58,231.38,2.9201]
[1733489997556,11.41700829,231.57,231.38,2.9201]
[1733489997757,17.21543418,231.58,231.38,2.9201]
[1733489997957,11.41694547,231.57,231.38,2.9201]
[1733489998158,17.21543418,231.58,231.38,2.9201]
[1733489998662,17.21543418,231.54,231.38,2.9201]
[1733489998856,17.21543418,231.5,231.38,1.4817]
[1733489999056,17.21543418,231.46,231.34,1.564]
[1733490000857,17.21543418,231.46,231.27,17.21543418]
[1733490001063,17.21543418,231.42,231.28,1.4515]
[1733490001660,17.21543418,231.46,231.28,1.4515]
[1733490001963,17.21543418,231.46,231.27,17.21543418]
[1733490002158,17.21543418,231.46,231.28,1.4839]
[1733490002559,17.21543418,231.5,231.31,17.21543418]
[1733490002765,17.21543418,231.54,231.35,17.21543418]
[1733490002960,17.21543418,231.58,231.32,2.8866]
[1733490003166,17.21543418,231.54,231.35,17.21543418]
[1733490003462,17.21543418,231.58,231.35,17.21543418]
[1733490003661,17.21543418,231.58,231.39,17.21543418]
[1733490003854,17.21543418,231.58,231.4,1.4839]
[1733490004057,17.21543418,231.62,231.4,1.4839]
[1733490004257,17.21543418,231.62,231.44,17.21543418]
[1733490004458,17.21543418,231.62,231.45,1.4503]
[1733490005368,17.21543418,231.66,231.45,18.66573418]
[1733490005559,17.21543418,231.66,231.46,1.3208]
[1733490005758,17.21543418,231.62,231.45,1.4503]
[1733490006062,17.21543418,231.58,231.45,1.4503]
[1733490006458,17.21543418,231.58,231.4,1.4839]
[1733490007665,17.21543418,231.62,231.43,17.21543418]
[1733490008867,17.21543418,231.54,231.4,1.4839]
[1733490009275,17.21543418,231.5,231.4,1.4839]
[1733490009475,17.21543418,231.5,231.3,17.21543418]
[1733490009674,17.21543418,231.5,231.31,3.126]
[1733490010574,17.21543418,231.54,231.34,17.21543418]
[1733490010771,17.21543418,231.58,231.34,17.21543418]
[1733490011076,17.21543418,231.58,231.38,17.21543418]
[1733490011268,17.21543418,231.58,231.39,1.3608]
[1733490013669,17.21543418,231.53,231.39,1.3608]
[1733490013872,17.21543418,231.53,231.34,17.21543418]
[1733490014071,17.21543418,231.49,231.32,1.4026]
[1733490017079,17.21543418,231.53,231.32,1.4026]
[1733490017271,17.21543418,231.49,231.32,1.4026]
[1733490017471,17.21543418,231.45,231.31,3.126]
[1733490018275,12.94,231.71,231.33,17.21543418]
[1733490018473,17.21543418,231.55,231.37,17.21543418]
[1733490018669,0.6220359,231.54,231.37,17.21543418]
[1733490018875,17.21543418,231.55,231.37,17.21543418]
[1733490019173,17.21543418,231.47,231.32,1.4116]
[1733490020171,17.21543418,231.47,231.22,0.6265]
[1733490020377,17.21543418,231.6,231.25,17.21543418]
[1733490020579,17.21543418,231.47,231.25,17.21543418]
[1733490020781,17.21543418,231.47,231.29,17.21543418]
[1733490020984,17.21543418,231.51,231.33,17.21543418]
[1733490021276,17.21543418,231.51,231.34,2.7934]
[1733490021578,17.21543418,231.55,231.34,4.165]
[1733490021976,17.21543418,231.51,231.34,4.165]
[1733490022180,17.21543418,231.51,231.34,2.7934]
[1733490023572,17.21543418,231.51,231.29,17.21543418]
[1733490023779,17.21543418,231.47,231.3,1.318]
[1733490024080,12.94,231.7,231.23,1.3716]
[1733490024283,17.21543418,231.42,231.23,1.3716]
[1733490025676,17.21543418,231.48,231.23,1.3716]
[1733490025677,17.21543418,231.38,231.23,1.3716]
[1733490026281,17.21543418,231.38,231.22,0.6265]
[1733490026675,17.21543418,231.34,231.22,0.6265]
[1733490028584,17.21543418,231.38,231.22,0.6265]
[1733490028882,17.21543418,231.42,231.24,17.21543418]
[1733490029084,17.21543418,231.46,231.25,1.3809]
[1733490029383,17.21543418,231.46,231.26,1.4105]
[1733490029787,17.21543418,231.51,231.32,17.21543418]
[1733490029987,11.40317339,231.5,231.32,17.21543418]
[1733490030290,17.21543418,231.51,231.32,17.21543418]
[1733490030291,17.21543418,231.55,231.32,17.21543418]
[1733490030477,11.41832504,231.54,231.33,1.3749]
[1733490030677,17.21543418,231.55,231.33,1.3749]
[1733490030981,17.21543418,231.59,231.4,17.21543418]
[1733490031286,17.21543418,231.63,231.44,17.21543418]
[1733490031483,11.43195023,231.62,231.44,17.21543418]
[1733490031684,17.21543418,231.63,231.45,1.3749]
[1733490031886,11.43476039,231.62,231.45,1.3749]
[1733490032091,27.93052307,231.62,231.45,1.3749]
[1733490033288,2.15805602,231.69,231.47,27.93052307]
[1733490033588,11.4373771,231.68,231.47,27.93052307]
[1733490033784,11.4373771,231.67,231.47,27.93052307]
[1733490033985,30.08857909,231.69,231.47,27.93052307]
[1733490034188,27.93052307,231.65,231.47,27.93052307]
[1733490034583,2.15805602,231.69,231.51,27.93052307]
[1733490034780,27.93052307,231.72,231.55,27.93052307]
[1733490034987,11.43475536,231.71,231.56,2.7866]
[1733490035180,27.93052307,231.72,231.56,4.1585]
[1733490037792,27.93052307,231.72,231.56,2.7866]
[1733490039890,27.93052307,231.72,231.51,27.93052307]
[1733490040192,27.93052307,231.72,231.49,1.3719]
[1733490040193,27.93052307,231.72,231.52,2.7231]
[1733490040400,27.93052307,231.72,231.54,27.93052307]
[1733490040998,27.93052307,231.72,231.52,2.7231]
[1733490041290,27.93052307,231.64,231.52,2.7231]
[1733490041596,27.93052307,231.6,231.4,27.93052307]
[1733490042094,27.93052307,231.6,231.37,2.7074]
[1733490042095,27.93052307,231.56,231.37,2.7074]
[1733490042500,27.93052307,231.46,231.27,28.93052307]
[1733490042791,27.93052307,231.46,231.29,1.3279]
[1733490043291,27.93052307,231.6,231.29,1.3279]
[1733490043292,27.93052307,231.5,231.29,1.3279]
[1733490043487,27.93052307,231.5,231.3,27.93052307]
[1733490043991,27.93052307,231.5,231.29,1.3279]
[1733490044188,27.93052307,231.54,231.34,27.93052307]
[1733490044594,11.38849406,231.53,231.34,27.93052307]
[1733490044793,27.93052307,231.54,231.34,27.93052307]
[1733490047295,27.93052307,231.5,231.3,27.93052307]
[1733490047499,27.93052307,231.46,231.29,1.3279]
[1733490047902,27.93052307,231.42,231.29,1.3279]
[1733490048301,27.93052307,231.46,231.29,1.3279]
[1733490048496,27.93052307,231.42,231.29,1.3279]
[1733490048698,27.93052307,231.46,231.29,1.3279]
[1733490050103,27.93052307,231.54,231.34,27.93052307]
[1733490050292,11.38215282,231.53,231.34,27.93052307]
[1733490050500,27.93052307,231.6,231.34,27.93052307]
[1733490050690,20.14785873,231.59,231.34,27.93052307]
[1733490050891,27.93052307,231.51,231.34,27.93052307]
[1733490051697,27.93052307,231.55,231.34,27.93052307]
[1733490054300,27.93052307,231.55,231.38,27.93052307]
[1733490056103,17.19860997,231.56,231.36,17.19860997]
[1733490056302,17.19860997,231.56,231.37,1.3697]
[1733490056501,17.19860997,231.6,231.4,17.19860997]
[1733490056807,1.0,231.71,231.41,1.3728]
[1733490056808,17.19860997,231.56,231.41,1.3728]
[1733490057801,17.19860997,231.56,231.42,1.33]
[1733490058402,17.19860997,231.6,231.42,1.33]
[1733490061909,17.19860997,231.56,231.18,12.94]
[1733490062107,17.19860997,231.51,231.33,17.19860997]
[1733490062306,17.19860997,231.55,231.33,17.19860997]
[1733490062509,17.19860997,231.59,231.41,17.19860997]
[1733490062708,17.19860997,231.64,231.45,17.19860997]
[1733490063105,17.19860997,231.6,231.42,2.6806]
[1733490063306,17.19860997,231.56,231.42,2.6806]
[1733490064004,17.19860997,231.52,231.42,2.6806]
[1733490064209,17.19860997,231.52,231.34,1.3246]
[1733490064400,17.19860997,231.52,231.35,2.8227]
[1733490064810,17.19860997,231.56,231.37,17.19860997]
[1733490066707,17.19860997,231.6,231.37,17.19860997]
[1733490067010,17.19860997,231.6,231.41,17.19860997]
[1733490069004,17.19860997,231.72,231.45,17.19860997]
[1733490069005,17.19860997,231.64,231.45,17.19860997]
[1733490069207,17.19860997,231.64,231.46,1.4105]
[1733490069609,17.19860997,231.64,231.47,1.3337]
[1733490070412,290.33165181,231.85,231.49,17.19860997]
[1733490070606,17.19860997,231.71,231.53,17.19860997]
[1733490072511,17.19860997,231.96,231.57,17.19860997]
[1733490072710,17.19860997,231.78,231.58,2.6348]
[1733490072903,17.19860997,231.78,231.59,1.3997]
[1733490074812,17.19860997,231.7,231.59,1.3997]
[1733490075021,17.19860997,231.66,231.45,17.19860997]
[1733490075814,17.19860997,231.62,231.45,17.19860997]
[1733490077215,17.19860997,231.62,231.39,4.0334]
[1733490077419,17.19860997,231.62,231.39,21.23200997]
[1733490077813,17.19860997,231.58,231.39,21.23200997]
[1733490079019,17.19860997,231.62,231.39,21.23200997]
[1733490079219,11.41395174,231.61,231.43,17.19860997]
[1733490079417,11.41395174,231.6,231.43,17.19860997]
[1733490079617,17.19860997,231.62,231.43,17.19860997]
[1733490079821,11.41571641,231.61,231.43,17.19860997]
[1733490080124,11.41571641,231.6,231.43,17.19860997]
[1733490080318,17.19860997,231.62,231.43,17.19860997]
[1733490080519,11.41705544,231.61,231.43,17.19860997]
[1733490080718,17.19860997,231.58,231.39,21.23200997]
[1733490083920,17.19860997,231.54,231.13,17.80455552]
[1733490084227,17.19860997,231.5,231.3,17.19860997]
[1733490084420,17.19860997,231.5,231.31,2.7497]
[1733490084721,17.19860997,231.46,231.31,2.7497]
[1733490085526,17.19860997,231.51,231.31,2.7497]
[1733490086525,17.19860997,231.58,231.33,17.19860997]
[1733490086727,27.44368248,231.57,231.33,17.19860997]
[1733490086928,11.43445489,231.56,231.37,17.19860997]
[1733490087119,11.43445489,231.55,231.37,17.19860997]
[1733490087317,17.19860997,231.58,231.37,17.19860997]
[1733490087518,11.43584642,231.57,231.38,1.3514]
[1733490087822,17.19860997,231.58,231.38,1.3514]
[1733490088921,28.07360704,231.57,231.38,1.3514]
[1733490089226,27.45054247,231.56,231.38,1.3514]
[1733490089424,17.19860997,231.62,231.41,17.19860997]
[1733490089723,28.08109275,231.61,231.41,17.19860997]
[1733490089927,17.19860997,231.54,231.42,2.8252]
[1733490090130,11.43828777,231.53,231.38,1.3514]
[1733490090428,17.19860997,231.54,231.38,1.3514]
[1733490090627,27.45481972,231.53,231.38,1.3514]
[1733490090830,11.43820756,231.52,231.38,1.3514]
[1733490091030,17.19860997,231.54,231.33,2.8146]
[1733490091229,11.43955106,231.53,231.33,2.8146]
[1733490091527,17.19860997,231.54,231.33,2.8146]
[1733490091722,17.19860997,231.5,231.27,17.19860997]
[1733490091926,17.19860997,231.5,231.28,1.3811]
[1733490092227,11.43605662,231.49,231.28,18.57970997]
[1733490092424,17.19860997,231.5,231.28,18.57970997]
[1733490092728,11.4352637,231.49,231.28,18.57970997]
[1733490092927,17.19860997,231.5,231.28,18.57970997]
[1733490093333,11.43940028,231.49,231.28,18.57970997]
[1733490093543,17.19860997,231.5,231.32,17.19860997]
[1733490093735,17.19860997,231.5,231.33,2.7578]
[1733490094131,17.19860997,231.54,231.33,2.7578]
[1733490094439,11.44317162,231.53,231.36,17.19860997]
[1733490094638,11.44317162,231.52,231.36,17.19860997]
[1733490094838,17.19860997,231.58,231.36,17.19860997]
[1733490095137,27.47291074,231.57,231.36,17.19860997]
[1733490095439,27.47291074,231.56,231.36,17.19860997]
[1733490095638,17.19860997,231.58,231.36,17.19860997]
[1733490095834,27.48745649,231.57,231.36,17.19860997]
[1733490096038,17.19860997,231.53,231.33,2.7578]
[1733490096439,17.19860997,231.49,231.33,2.7578]
[1733490097538,17.19860997,231.45,231.33,2.7578]
[1733490098836,17.19860997,231.49,231.33,2.7578]
[1733490099538,17.19860997,231.53,231.33,2.7578]
[1733490099743,11.45465064,231.52,231.33,2.7578]
[1733490099938,11.45465064,231.51,231.33,2.7578]
[1733490100137,17.19860997,231.53,231.33,2.7578]
[1733490100344,11.45400526,231.52,231.33,2.7578]
[1733490100544,17.19860997,231.53,231.33,2.7578]
[1733490100745,17.19860997,231.58,231.35,17.19860997]
[1733490100948,28.11192347,231.57,231.35,17.19860997]
[1733490101142,28.11192347,231.56,231.35,17.19860997]
[1733490101343,28.11004008,231.55,231.35,17.19860997]
[1733490101639,17.19860997,231.58,231.35,17.19860997]
[1733490101640,17.19860997,231.54,231.35,17.19860997]
[1733490102145,17.19860997,231.58,231.33,2.7578]
[1733490102146,17.19860997,231.5,231.33,2.7578]
[1733490103043,17.19860997,231.46,231.28,1.3811]
[1733490103243,17.19860997,231.42,231.22,19.92180997]
[1733490103447,17.19860997,231.38,231.22,19.92180997]
[1733490105046,17.19860997,231.42,231.22,19.92180997]
[1733490105248,17.19860997,231.46,231.26,17.19860997]
[1733490105644,17.19860997,231.46,231.3,17.19860997]
[1733490105839,17.19860997,231.46,231.27,1.4253]
[1733490106342,17.19860997,231.35,231.22,2.7232]
[1733490107649,17.19860997,231.39,231.22,2.7232]
[1733490108243,17.19860997,231.46,231.22,2.7232]
[1733490108444,11.41214644,231.45,231.25,17.19860997]
[1733490108641,17.19860997,231.46,231.25,17.19860997]
[1733490108839,17.19860997,231.46,231.26,1.3212]
[1733490113043,17.19860997,231.38,231.22,2.7232]
[1733490121447,17.19860997,231.32,231.16,0.80737]
[1733490121755,17.19860997,231.28,231.16,0.80737]
[1733490123553,17.19860997,231.36,231.16,0.80737]
[1733490123554,17.19860997,231.24,231.16,0.80737]
[1733490125453,17.19860997,231.2,231.16,0.80737]
[1733490128551,17.19860997,231.24,231.16,0.80737]
[1733490129358,17.19860997,231.17,231.16,0.80737]
[1733490131558,35.81808521,231.33,231.16,0.80737]
[1733490131759,17.19860997,231.22,231.16,0.80737]
[1733490132859,17.19860997,231.18,231.16,0.80737]
[1733490133159,17.19860997,231.22,231.16,0.80737]
[1733490136762,17.19860997,231.18,231.16,0.80737]
[1733490138556,2.16150786,231.32,231.16,0.80737]
[1733490138757,17.19860997,231.17,231.16,0.80737]
[1733490139394,17.19860997,231.17,231.01,2.7339]
[1733490140970,17.19860997,231.13,231.01,1.3542]
[1733490142365,17.19860997,231.21,231.06,1.5764]
[1733490143071,17.19860997,231.17,231.06,1.5764]
[1733490147575,17.19860997,231.24,231.06,1.5764]
[1733490148671,17.19860997,231.24,231.06,18.77500997]
[1733490148979,2.16150786,231.32,231.1,17.19860997]
[1733490148980,17.19860997,231.28,231.1,17.19860997]
[1733490149184,17.19860997,231.28,231.11,1.3825]
[1733490149371,17.19860997,231.28,231.11,18.58110997]
[1733490149866,17.19860997,231.32,231.12,1.3453]
[1733490150269,17.19860997,231.36,231.15,17.19860997]
[1733490150475,17.19860997,231.36,231.12,18.54390997]
[1733490150476,17.19860997,231.36,231.18,17.19860997]
[1733490150677,17.19860997,231.36,231.19,1.3758]
[1733490152781,17.19860997,231.44,231.22,17.19860997]
[1733490152977,11.40581988,231.43,231.23,2.7363]
[1733490153176,17.19860997,231.44,231.23,2.7363]
[1733490153376,17.19860997,231.6,231.26,17.19860997]
[1733490153377,17.19860997,231.48,231.26,17.19860997]
[1733490153576,17.19860997,231.48,231.3,17.19860997]
[1733490153785,17.19860997,231.52,231.31,1.3911]
[1733490153982,11.40848336,231.51,231.31,1.3911]
[1733490154181,17.19860997,231.48,231.31,1.3911]
[1733490154776,17.19860997,231.52,231.32,17.19860997]
[1733490154977,17.19860997,231.56,231.36,17.19860997]
[1733490155177,11.40923631,231.55,231.37,2.8439]
[1733490155475,17.19860997,231.56,231.37,2.8439]
[1733490155775,17.19860997,231.6,231.4,17.19860997]
[1733490155976,11.40587382,231.59,231.4,17.19860997]
[1733490156178,17.19860997,231.6,231.4,17.19860997]
[1733490156876,17.19860997,231.6,231.44,17.19860997]
[1733490157078,290.33165181,231.82,231.45,1.4112]
[1733490157079,17.19860997,231.64,231.45,1.4112]
[1733490157279,17.19860997,231.68,231.48,17.19860997]
[1733490157780,290.33165181,231.92,231.53,17.19860997]
[1733490157980,17.19860997,231.8,231.57,17.19860997]
[1733490158277,17.19860997,231.8,231.61,17.19860997]
[1733490160777,17.19860997,231.83,231.61,17.19860997]
[1733490160981,17.19860997,231.83,231.65,17.19860997]
[1733490161981,17.19860997,231.83,231.6,17.19860997]
[1733490161982,17.19860997,231.79,231.6,17.19860997]
[1733490162577,17.19860997,231.79,231.58,1.4112]
[1733490163079,17.19860997,231.71,231.58,1.4112]
[1733490163482,17.19860997,231.75,231.58,1.4112]
[1733490163878,17.19860997,231.79,231.6,17.19860997]
[1733490164978,12.97,232.1,231.64,17.19860997]
[1733490165279,17.19860997,231.86,231.64,17.19860997]
[1733490166481,17.19860997,231.78,231.6,17.19860997]
[1733490167783,17.19860997,231.82,231.6,17.19860997]
[1733490169179,17.19860997,231.82,231.64,17.19860997]
[1733490170087,17.19860997,231.86,231.64,17.19860997]
[1733490171280,17.19860997,231.86,231.58,1.4112]
[1733490171479,17.19860997,231.86,231.64,17.19860997]
[1733490173687,17.19860997,231.86,231.68,17.19860997]
[1733490173884,17.19860997,231.86,231.69,4.1844]
[1733490176890,17.19860997,231.82,231.69,2.7452]
[1733490180284,17.19860997,231.86,231.69,2.7452]
[1733490180590,0.5857,231.92,231.69,2.7452]
[1733490180591,17.19860997,231.82,231.69,2.7452]
[1733490181489,17.19860997,231.78,231.63,1.4071]
[1733490181790,17.19860997,231.74,231.54,17.19860997]
[1733490181987,17.19860997,231.74,231.55,1.3556]
[1733490186197,17.19860997,231.74,231.52,17.19860997]
[1733490187304,17.19860997,231.74,231.56,17.19860997]
[1733490187700,17.19860997,231.7,231.52,17.19860997]
[1733490188204,17.19860997,231.74,231.52,17.19860997]
[1733490190301,17.19860997,231.7,231.52,17.19860997]
[1733490191702,17.19860997,231.76,231.56,17.19860997]
[1733490192694,17.19860997,231.72,231.52,17.19860997]
[1733490194005,17.19860997,231.72,231.51,1.412]
[1733490194006,17.19860997,231.68,231.51,1.412]
[1733490195697,17.19860997,231.64,231.51,1.412]
[1733490196205,17.19860997,231.6,231.42,17.19860997]
[1733490196504,290.33165181,231.78,231.45,17.19860997]
[1733490196805,17.19860997,231.67,231.45,17.19860997]
[1733490197003,11.43112249,231.66,231.45,17.19860997]
[1733490197998,11.43112249,231.66,231.43,1.4333]
[1733490197999,17.19860997,231.63,231.43,1.4333]
[1733490198200,11.43112249,231.62,231.43,1.4333]
[1733490198406,17.19860997,231.59,231.43,1.4333]
[1733490198614,11.43112249,231.58,231.43,1.4333]
[1733490198803,17.19860997,231.59,231.43,1.4333]
[1733490199004,11.46242925,231.58,231.43,1.4333]
[1733490199300,17.19860997,231.67,231.45,17.19860997]
[1733490199501,19.67824108,231.66,231.5,17.19860997]
[1733490199707,11.47517193,231.65,231.51,2.7201]
[1733490200007,11.47517193,231.64,231.51,2.7201]
[1733490200207,11.47517193,231.63,231.51,2.7201]
[1733490200407,17.19860997,231.71,231.51,2.7201]
[1733490200706,11.49009617,231.7,231.54,17.19860997]
[1733490200907,11.49009617,231.69,231.55,1.4012]
[1733490201104,11.49009617,231.68,231.58,17.19860997]
[1733490201306,17.19860997,231.75,231.58,17.19860997]
[1733490201502,19.72077611,231.74,231.58,17.19860997]
[1733490201700,11.50034741,231.73,231.58,17.19860997]
[1733490201900,11.50034741,231.72,231.58,17.19860997]
[1733490202102,11.50034741,231.74,231.58,17.19860997]
[1733490202405,35.74969982,231.79,231.58,17.19860997]
[1733490202406,11.50800151,231.73,231.58,17.19860997]
[1733490202611,11.50800151,231.72,231.58,17.19860997]
[1733490202807,52.94830979,231.79,231.58,17.19860997]
[1733490203008,19.73608638,231.78,231.58,17.19860997]
[1733490203313,19.73608638,231.77,231.58,17.19860997]
[1733490203505,17.19860997,231.75,231.58,17.19860997]
[1733490203709,19.7331435,231.74,231.55,1.4012]
[1733490204012,19.7331435,231.73,231.55,1.4012]
[1733490204312,11.50947161,231.72,231.55,1.4012]
[1733490204507,35.74969982,231.79,231.55,1.4012]
[1733490204508,28.70808158,231.71,231.55,1.4012]
[1733490204713,11.50947161,231.7,231.55,1.4012]
[1733490204910,11.50947161,231.69,231.55,1.4012]
[1733490205109,11.50947161,231.68,231.55,1.4012]
[1733490205309,11.50947161,231.67,231.55,1.4012]
[1733490205510,17.19860997,231.71,231.55,1.4012]
[1733490205705,11.50590335,231.7,231.55,1.4012]
[1733490205907,11.50590335,231.69,231.55,1.4012]
[1733490206103,17.19860997,231.75,231.59,17.19860997]
[1733490206307,11.50888861,231.74,231.59,17.19860997]
[1733490206509,17.19860997,231.79,231.59,17.19860997]
[1733490206704,19.73970577,231.78,231.59,17.19860997]
[1733490206905,19.73970577,231.77,231.59,17.19860997]
[1733490207115,19.73970577,231.76,231.59,17.19860997]
[1733490207407,11.51163018,231.75,231.59,17.19860997]
[1733490207614,11.51163018,231.74,231.59,17.19860997]
[1733490207806,11.51163018,231.78,231.59,17.19860997]
[1733490208005,17.19860997,231.79,231.59,17.19860997]
[1733490208006,19.73966076,231.77,231.59,17.19860997]
[1733490208207,19.73966076,231.76,231.59,17.19860997]
[1733490208410,11.51163018,231.75,231.59,17.19860997]
[1733490208616,11.51163018,231.74,231.59,17.19860997]
[1733490208813,17.19860997,231.79,231.59,17.19860997]
[1733490208814,11.51163018,231.73,231.59,17.19860997]
[1733490209015,17.19860997,231.79,231.59,17.19860997]
[1733490209211,16.07088453,231.78,231.59,17.19860997]
[1733490209414,19.73903908,231.77,231.59,17.19860997]
[1733490209713,11.51147108,231.76,231.59,17.19860997]
[1733490209914,17.19860997,231.79,231.59,17.19860997]
[1733490209915,11.51147108,231.75,231.59,17.19860997]
[1733490210111,11.51147108,231.74,231.59,17.19860997]
[1733490210417,17.19860997,231.79,231.59,17.19860997]
[1733490210714,27.59239717,231.78,231.59,17.19860997]
[1733490210907,27.59239717,231.77,231.59,17.19860997]
[1733490211107,19.74846363,231.76,231.59,17.19860997]
[1733490211318,11.51674671,231.75,231.59,17.19860997]
[1733490211609,17.19860997,231.79,231.59,17.19860997]
[1733490211610,11.51674671,231.74,231.59,17.19860997]
[1733490211810,11.51674671,231.73,231.59,17.19860997]
[1733490212011,17.19860997,231.79,231.59,17.19860997]
[1733490212214,27.59575593,231.78,231.59,17.19860997]
[1733490212414,17.19860997,231.75,231.55,18.59980997]
[1733490212613,27.59572948,231.74,231.55,1.4012]
[1733490212815,27.59572948,231.73,231.55,1.4012]
[1733490213016,27.59572948,231.72,231.55,1.4012]
[1733490213210,27.59577585,231.71,231.55,1.4012]
[1733490213409,11.51811708,231.7,231.55,1.4012]
[1733490213617,17.19860997,231.75,231.55,1.4012]
[1733490213618,11.51811708,231.69,231.55,1.4012]
[1733490213916,17.19860997,231.67,231.55,1.4012]
[1733490214108,27.59275931,231.66,231.55,1.4012]
[1733490214318,17.19860997,231.63,231.51,1.3721]
[1733490214815,19.35289369,231.62,231.51,1.3721]
[1733490215019,19.35289369,231.61,231.51,1.3721]
[1733490215215,17.19860997,231.63,231.51,1.3721]
[1733490215413,19.35358152,231.62,231.51,1.3721]
[1733490215614,27.57724749,231.61,231.51,1.3721]
[1733490215812,11.50343469,231.6,231.51,1.3721]
[1733490216020,28.70204466,231.59,231.43,1.3767]
[1733490216217,17.19860997,231.55,231.37,2.7598]
[1733490216416,17.19860997,231.51,231.37,2.7598]
[1733490216817,11.48910392,231.5,231.37,2.7598]
[1733490217013,17.19860997,231.51,231.37,2.7598]
[1733490217014,11.48856716,231.49,231.37,2.7598]
[1733490217214,17.19860997,231.51,231.37,2.7598]
[1733490217414,19.31944958,231.5,231.37,2.7598]
[1733490217622,17.19860997,231.47,231.37,2.7598]
[1733490218421,11.46403094,231.46,231.37,2.7598]
[1733490218616,17.19860997,231.47,231.37,2.7598]
[1733490220114,17.19860997,231.5,231.37,2.7598]
[1733490220620,17.19860997,231.46,231.33,1.3767]
[1733490220924,17.19860997,231.46,231.29,2.8405]
[1733490221120,17.19860997,231.42,231.29,2.8405]
[1733490222628,17.19860997,231.46,231.29,2.8405]
[1733490223025,17.19860997,231.5,231.31,17.19860997]
[1733490223423,17.19860997,231.54,231.31,17.19860997]
[1733490224130,17.19860997,231.6,231.35,17.19860997]
[1733490224331,17.19860997,231.6,231.29,2.8405]
[1733490224332,12.04053022,231.59,231.39,17.19860997]
[1733490224630,0.62423601,231.58,231.39,17.19860997]
[1733490224823,17.19860997,231.6,231.39,17.19860997]
[1733490225132,17.19860997,231.64,231.43,17.19860997]
[1733490225323,17.19860997,231.64,231.44,2.788]
[1733490231230,17.19860997,231.68,231.47,17.19860997]
[1733490231427,17.19860997,231.68,231.48,1.4062]
[1733490231732,17.19860997,231.72,231.51,17.19860997]
[1733490232738,17.19860997,231.72,231.55,17.19860997]
[1733490233031,17.19860997,231.76,231.56,2.809]
[1733490233235,290.33165181,231.99,231.63,17.19860997]
[1733490233430,17.19860997,231.85,231.64,1.4307]
[1733490233630,11.42145876,231.84,231.64,1.4307]
[1733490233832,17.19860997,231.85,231.67,17.19860997]
[1733490234036,17.82269912,231.89,231.68,2.6621]
[1733490235240,17.82269912,231.89,231.71,17.19860997]
[1733490237430,17.19860997,231.85,231.68,2.6621]
[1733490237633,17.19860997,231.81,231.68,2.6621]